{"text_format":"1","workbook":"xlsx","n_sheets":2,"sheets":["アセス入力シート","多機関協働事業"],"not_rendered":{"charts":0,"images":0,"macros":1,"external_links":0,"defined_names":2,"comments":1,"pivot_tables":0},"unopened":[],"bounds":{"document_bytes":16777216,"sheet_cells":100000,"rows_first":2000,"rows_last":500,"rows_between":2000,"halvings":0,"cell_chars":16384,"cell_head_chars":4096},"cells_cut":0,"cells_raw":0,"read":"whole","date_system":"1900"}

{"sheet":"アセス入力シート","index":0,"n_rows":163,"n_cols":12,"rows_kept":163,"cut":false,"hidden":false,"merged":[[134,0,162,0],[3,0,5,0],[6,0,15,0],[16,0,31,0],[32,0,64,0],[65,0,133,0]]}
[]
[]
[]
["性別等"," 性別　（１．男　２．女　３．不明・その他）",null,null,null,null,null,null,null,null,1,1]
[null,"年齢",null,null,null,null,null,null,null,null,"不明",2]
[null,"\n相談受付日",null,null,null,null,null,null,null,null,null,3]
["世帯類型","単身世帯（64歳以下）"]
[null,"単身世帯（65歳以上）"]
[null,"夫婦のみの世帯（夫婦のどちらか一方が64歳以下）",null,null,null,null,null,null,null,null,null,1]
[null,"夫婦のみの世帯（夫婦ともにが65歳以上）",null,null,null,null,null,null,null,null,null,2]
[null,"夫婦と未婚の子のみの世帯",null,null,null,null,null,null,null,null,null,3]
[null,"配偶者のいない65歳以上の者と20歳以上の未婚の子のみの世帯",null,null,null,null,null,null,null,null,null,4]
[null,"ひとり親世帯（現に配偶者のいない65歳未満の者と20歳未満の子のみ（養子含む））",null,null,null,null,null,null,null,null,1]
[null,"3世代世帯（世帯主を中心とした直系3世代以上）"]
[null,"その他世帯（下記も記入してください）",null,null,null,null,null,null,null,null,0]
[null,"その他世帯自由記述",null,null,null,null,null,null,null,null,1]
["世帯構成員（本人を除く）"," 性別   １．男 ２．女 ３．不明・その他",null,null,null,null,null,null,null,null,2]
[null,"年齢",null,null,null,null,null,null,null,null,3]
[null," 性別   １．男 ２．女 ３．不明・その他",null,null,null,null,null,null,null,null,4]
[null,"年齢",null,null,null,null,null,null,null,null,5]
[null," 性別   １．男 ２．女 ３．不明・その他",null,null,null,null,null,null,null,null,6]
[null,"年齢",null,null,null,null,null,null,null,null,7]
[null," 性別   １．男 ２．女 ３．不明・その他",null,null,null,null,null,null,null,null,8]
[null,"年齢",null,null,null,null,null,null,null,null,9]
[null," 性別   １．男 ２．女 ３．不明・その他",null,null,null,null,null,null,null,null,10]
[null,"年齢",null,null,null,null,null,null,null,null,11]
[null," 性別   １．男 ２．女 ３．不明・その他",null,null,null,null,null,null,null,null,12]
[null,"年齢",null,null,null,null,null,null,null,null,13]
[null," 性別   １．男 ２．女 ３．不明・その他",null,null,null,null,null,null,null,null,14]
[null,"年齢",null,null,null,null,null,null,null,null,15]
[null," 性別   １．男 ２．女 ３．不明・その他",null,null,null,null,null,null,null,null,16]
[null,"年齢",null,null,null,null,null,null,null,null,17]
["相談経路","生活困窮部署",null,null,null,null,null,null,null,null,18]
[null,"障害担当部署",null,null,null,null,null,null,null,null,19]
[null,"高齢担当部署（介護含む）",null,null,null,null,null,null,null,null,20]
[null,"子ども・子育て担当部署",null,null,null,null,null,null,null,null,21]
[null,"生活保護担当部署",null,null,null,null,null,null,null,null,22]
[null,"保健担当部署",null,null,null,null,null,null,null,null,23]
[null,"住宅担当部署",null,null,null,null,null,null,null,null,24]
[null,"教育委員会または教育担当部署",null,null,null,null,null,null,null,null,25]
[null,"税担当部署",null,null,null,null,null,null,null,null,26]
[null,"保険・年金担当部署",null,null,null,null,null,null,null,null,27]
[null,"　その他行政担当部署",null,null,null,null,null,null,null,null,28]
[null,"　その他行政担当部署の場合　自由記述",null,null,null,null,null,null,null,null,29]
[null,"生活困窮者自立相談支援機関",null,null,null,null,null,null,null,null,30]
[null,"福祉事務所未設置町村による相談支援事業の相談機関",null,null,null,null,null,null,null,null,31]
[null,"地域包括支援センター",null,null,null,null,null,null,null,null,32]
[null,"基幹相談支援機関",null,null,null,null,null,null,null,null,33]
[null,"障害者相談事業の相談機関",null,null,null,null,null,null,null,null,34]
[null,"子ども家庭総合支援拠点",null,null,null,null,null,null,null,null,35]
[null,"子育て世代包括支援センター",null,null,null,null,null,null,null,null,36]
[null,"利用者支援事業の相談機関",null,null,null,null,null,null,null,null,37]
[null,"成年後見中核機関",null,null,null,null,null,null,null,null,38]
[null,"社会福祉協議会",null,null,null,null,null,null,null,null,39]
[null,"保健所",null,null,null,null,null,null,null,null,40]
[null,"児童相談所",null,null,null,null,null,null,null,null,41]
[null,"婦人相談所",null,null,null,null,null,null,null,null,42]
[null,"精神保健福祉センター",null,null,null,null,null,null,null,null,43]
[null,"ひきこもり地域支援センター",null,null,null,null,null,null,null,null,44]
[null,"医療機関",null,null,null,null,null,null,null,null,45]
[null,"警察",null,null,null,null,null,null,null,null,46]
[null,"司法関係の機関、",null,null,null,null,null,null,null,null,47]
[null,"居宅介護支援事業所",null,null,null,null,null,null,null,null,48]
[null,"その他機関",null,null,null,null,null,null,null,null,49]
[null,"その他機関の場合自由記述",null,null,null,null,null,null,null,null,50]
["支援開始時点で関わっていた関係機関等（当てはまるものすべて）","ハローワーク",null,null,null,null,null,null,null,null,51]
[null,"職業訓練機関",null,null,null,null,null,null,null,null,52]
[null,"就労準備支援機関",null,null,null,null,null,null,null,null,53]
[null,"地域若者サポートステーション",null,null,null,null,null,null,null,null,54]
[null,"就労支援法人・団体（就労訓練事業を含む）",null,null,null,null,null,null,null,null,55]
[null,"一般企業",null,null,null,null,null,null,null,null,56]
[null,"各種協同組合（生協等）",null,null,null,null,null,null,null,null,57]
[null,"農業者・農業団体",null,null,null,null,null,null,null,null,58]
[null,"医療機関",null,null,null,null,null,null,null,null,59]
[null,"（医療機関の内、無料低額診療実施機関）",null,null,null,null,null,null,null,null,60]
[null,"行政の保健担当部署",null,null,null,null,null,null,null,null,61]
[null,"行政の障害担当部署",null,null,null,null,null,null,null,null,62]
[null,"基幹相談支援センター",null,null,null,null,null,null,null,null,63]
[null,"精神保健福祉センター",null,null,null,null,null,null,null,null,64]
[null,"障害者就業・生活支援センター",null,null,null,null,null,null,null,null,65]
[null,"障害者就労支援事業所",null,null,null,null,null,null,null,null,66]
[null,"その他障害者支援機関・施設",null,null,null,null,null,null,null,null,67]
[null,"行政の高齢担当部署",null,null,null,null,null,null,null,null,68]
[null,"地域包括支援センター",null,null,null,null,null,null,null,null,69]
[null,"居宅介護支援事業所・その他介護事業所",null,null,null,null,null,null,null,null,70]
[null,"行政の子ども家庭担当部署",null,null,null,null,null,null,null,null,71]
[null,"教育委員会",null,null,null,null,null,null,null,null,72]
[null,"保育所・幼稚園・子ども園",null,null,null,null,null,null,null,null,73]
[null,"小・中・高（特別支援含む）学校",null,null,null,null,null,null,null,null,74]
[null,"大学等（高等専門学校、専修学校、各種学校含む）",null,null,null,null,null,null,null,null,75]
[null,"その他教育機関",null,null,null,null,null,null,null,null,76]
[null,"家庭児童相談室（福祉事務所）",null,null,null,null,null,null,null,null,77]
[null,"児童相談所・児童家庭支援センター",null,null,null,null,null,null,null,null,78]
[null,"児童福祉施設",null,null,null,null,null,null,null,null,79]
[null,"地域子育て支援拠点",null,null,null,null,null,null,null,null,80]
[null,"その他子育て支援機関",null,null,null,null,null,null,null,null,81]
[null,"行政の人権担当部署",null,null,null,null,null,null,null,null,82]
[null,"男女共同参画センター",null,null,null,null,null,null,null,null,83]
[null,"婦人相談所・配偶者暴力相談支援センター",null,null,null,null,null,null,null,null,84]
[null,"福祉事務所（生活保護担当部署）",null,null,null,null,null,null,null,null,85]
[null,"ホームレス支援機関",null,null,null,null,null,null,null,null,86]
[null,"一時保護施設",null,null,null,null,null,null,null,null,87]
[null,"警察",null,null,null,null,null,null,null,null,88]
[null,"更生保護施設・自立準備ホーム",null,null,null,null,null,null,null,null,89]
[null,"地域生活定着支援センター",null,null,null,null,null,null,null,null,90]
[null,"自立相談支援機関",null,null,null,null,null,null,null,null,91]
[null,"行政の税担当部署",null,null,null,null,null,null,null,null,92]
[null,"行政の保険・年金担当部署（年金事務所含む）",null,null,null,null,null,null,null,null,93]
[null,"社会保険労務士",null,null,null,null,null,null,null,null,94]
[null,"家計改善支援機関",null,null,null,null,null,null,null,null,95]
[null,"食糧支援関係団体（フードバンク等）",null,null,null,null,null,null,null,null,96]
[null,"小口貸付（生活福祉資金除く）",null,null,null,null,null,null,null,null,97]
[null,"社会福祉協議会（生活福祉資金）",null,null,null,null,null,null,null,null,98]
[null,"社会福祉協議会（日常生活自立支援事業）",null,null,null,null,null,null,null,null,99]
[null,"成年後見人制度の支援機関",null,null,null,null,null,null,null,null,"100～"]
[null,"法テラス・弁護士・司法書士",null,null,null,null,null,null,null,null,"10歳未満"]
[null,"消費生活センター・消費生活相談窓口・多重債務者等相談窓口",null,null,null,null,null,null,null,null,"10代"]
[null,"行政の住宅施策担当部局（居住支援協議会）",null,null,null,null,null,null,null,null,"20代"]
[null,"居住支援法人",null,null,null,null,null,null,null,null,"30代"]
[null,"不動産・保証関係会社",null,null,null,null,null,null,null,null,"40代"]
[null,"他地域の生活困窮者自立相談支援機関",null,null,null,null,null,null,null,null,"50代"]
[null,"民生委員・児童委員",null,null,null,null,null,null,null,null,"60代"]
[null,"外国人支援団体・相談窓口",null,null,null,null,null,null,null,null,"70代"]
[null,"ひきこもり支援機関",null,null,null,null,null,null,null,null,"80代"]
[null,"ＮＰＯ・ボランティア団体",null,null,null,null,null,null,null,null,"90代"]
[null,"商店街・商工会等経済団体"]
[null,"町内会・自治会、福祉委員、近隣住民"]
[null,"ライフライン民間事業者（電気・ガス・水道）"]
[null,"保健所（動物・ペットの多頭飼育等）"]
[null,"社会福祉協議会（資金、日常生活自立支援以外）"]
[null,"その他行政の担当部署"]
[null,"家族・親族・その他キーパーソン"]
[null,"その他"]
[null,"その他の詳細記入"]
["本人が抱える課題（当てはまるものすべて）","病気"]
[null,"けが"]
[null,"障害（手帳有）"]
[null,"障害（疑い）"]
[null,"自殺企図"]
[null,"その他メンタルヘルス（うつ・不眠・不安・依存症・適応障害）"]
[null,"住まい不安定"]
[null,"ホームレス"]
[null,"経済的困窮"]
[null,"（多重・過重）債務"]
[null,"家計管理の問題"]
[null,"就職活動困難"]
[null,"就職定着困難"]
[null,"生活習慣の乱れ"]
[null,"社会的孤立（ニート・ひきこもり含む）"]
[null,"家族関係・家族の問題"]
[null,"介護"]
[null,"子育て"]
[null,"不登校"]
[null,"非行"]
[null,"中卒・高校中退"]
[null,"ひとり親"]
[null,"DV・虐待"]
[null,"外国籍"]
[null,"刑余者"]
[null,"コミュニケーションが苦手"]
[null,"本人の能力の課題（識字・言語・理解等）"]
[null,"被災"]
[null,"その他（詳細記入）"]

{"sheet":"多機関協働事業","index":1,"n_rows":39,"n_cols":320,"rows_kept":39,"cut":false,"hidden":false,"merged":[[4,318,5,318],[4,319,5,319],[4,313,5,313],[4,314,5,314],[4,315,5,315],[4,316,5,316],[4,317,5,317],[4,293,4,302],[4,303,4,312],[3,133,4,162],[4,2,5,2],[4,3,5,3],[4,4,5,4],[4,218,4,231],[4,232,4,257],[4,263,4,272],[4,273,4,282],[4,283,4,292],[4,180,4,182],[4,183,4,196],[4,197,4,202],[4,203,4,214],[4,215,4,217],[4,116,4,118],[4,119,4,132],[4,163,4,170],[4,171,4,173],[4,174,4,179],[4,75,4,80],[4,81,4,83],[4,84,4,97],[4,98,4,103],[4,104,4,115],[4,5,4,14],[4,15,4,30],[4,31,4,63],[4,64,4,71],[4,72,4,74],[0,1,0,14],[2,2,2,3],[3,64,3,132],[3,163,3,231],[3,263,3,310]]}
[null,"多機関協働事業（様式７）",null,null,null,null,null,null,null,null,null,null,null,null,null,null,null,null,null,null,null,null,null,null,null,null,null,null,null,null,null,null,null,null,null,null,null,null,null,null,null,null,null,null,"い",null,null,null,null,null,null,null,null,null,null,null,null,null,null,null,null,null,null,null,null,null,null,null,null,null,null,null,null,null,null,null,null,null,null,null,null,null,null,null,null,null,null,null,null,null,null,null,null,null,null,null,null,null,null,null,null,null,null,null,null,null,null,null,null,null,null,null,null,null,null,null,null,null,null,null,null,null,null,null,null,null,null,null,null,null,null,null,null,null,null,null,null,null,null,null,null,null,null,null,null,null,null,null,null,null,null,null,null,null,null,null,null,null,null,null,null,null,null,null,null,null,null,null,null,null,null,null,null,null,null,null,null,null,null,null,null,null,null,null,null,null,null,null,null,null,null,null,null,null,null,null,null,null,null,null,null,null,null,null,null,null,null,null,null,null,null,null,null,null,null,null,null,null,null,null,null,null,null,null,null,null,null,null,null,null,null,null,null,null,null,null,null,null,null,null,null,null,null,null,null,null,null,null,null,null,null,null,null,null,null,null,null,null,null,null,null,null,"つながり指標"]
[]
[null,"自治体名",null,null,null,"報告月",null,"月"]
[null,null,null,null,null,null,null,null,null,null,null,null,null,null,null,null,null,null,null,null,null,null,null,null,null,null,null,null,null,null,null,null,null,null,null,null,null,null,null,null,null,null,null,null,null,null,null,null,null,null,null,null,null,null,null,null,null,null,null,null,null,null,null,null,"支援開始時点で関わっていた関係機関等（当てはまるものすべて）",null,null,null,null,null,null,null,null,null,null,null,null,null,null,null,null,null,null,null,null,null,null,null,null,null,null,null,null,null,null,null,null,null,null,null,null,null,null,null,null,null,null,null,null,null,null,null,null,null,null,null,null,null,null,null,null,null,null,null,null,null,null,null,null,null,null,null,null,"　　　本人が抱える課題（当てはまるものすべて）",null,null,null,null,null,null,null,null,null,null,null,null,null,null,null,null,null,null,null,null,null,null,null,null,null,null,null,null,null,"支援開始後に関わった関係機関等（当てはまるものすべて　支援開始時に関わっていた機関含む）",null,null,null,null,null,null,null,null,null,null,null,null,null,null,null,null,null,null,null,null,null,null,null,null,null,null,null,null,null,null,null,null,null,null,null,null,null,null,null,null,null,null,null,null,null,null,null,null,null,null,null,null,null,null,null,null,null,null,null,null,null,null,null,null,null,null,null,null,null,null,null,null,null,null,null,null,null,null,null,null,null,null,null,null,null,null,null,null,null,null,null,null,null,null,null,null,null,null,null,"つながり指標"]
[null,"ID"," 性別\n\n１．男\n２．女\n３．不明・その他","年齢","相談受付日","世帯類型（いずれか一つ）",null,null,null,null,null,null,null,null,null,"世帯構成員（本人を除く）",null,null,null,null,null,null,null,null,null,null,null,null,null,null,null,"相談経路",null,null,null,null,null,null,null,null,null,null,null,null,null,null,null,null,null,null,null,null,null,null,null,null,null,null,null,null,null,null,null,null,"就労",null,null,null,null,null,null,null,"医療",null,null,"障害",null,null,null,null,null,"高齢",null,null,"子ども・人権",null,null,null,null,null,null,null,null,null,null,null,null,null,"保護",null,null,null,null,null,"生活・金銭",null,null,null,null,null,null,null,null,null,null,null,"住居",null,null,"その他",null,null,null,null,null,null,null,null,null,null,null,null,null,null,null,null,null,null,null,null,null,null,null,null,null,null,null,null,null,null,null,null,null,null,null,null,null,null,null,null,null,null,null,"就労",null,null,null,null,null,null,null,"医療",null,null,"障害",null,null,null,null,null,"高齢",null,null,"子ども・人権",null,null,null,null,null,null,null,null,null,null,null,null,null,"保護",null,null,null,null,null,"生活・金銭",null,null,null,null,null,null,null,null,null,null,null,"住居",null,null,"その他",null,null,null,null,null,null,null,null,null,null,null,null,null,"見られた変化",null,null,null,null,null,null,null,null,null,null,null,null,null,null,null,null,null,null,null,null,null,null,null,null,null,null,null,null,null,null,"意欲",null,null,null,null,null,null,null,null,null,"自己肯定感",null,null,null,null,null,null,null,null,null,"対人関係",null,null,null,null,null,null,null,null,null,"社会参加",null,null,null,null,null,null,null,null,null,"相談",null,null,null,null,null,null,null,null,null,"終結日","支援期間\n（終結日-初回受付日）\n\n※日数表記","支援期間\n（終結日-初回受付日）\n\n※月数表記","支援期間\n（終結日-初回受付日）\n\n※年数表記","①支援開始前関係機関数","②支援開始後関係機関数","増減②-①"]
[null,0,null,null,null,"単身世帯（64歳以下）","単身世帯（65歳以上）","夫婦のみの世帯（夫婦のどちらか一方が64歳以下）","夫婦のみの世帯（夫婦ともにが65歳以上）","夫婦と未婚の子のみの世帯","配偶者のいない65歳以上の者と20歳以上の未婚の子のみの世帯","ひとり親世帯（現に配偶者のいない65歳未満の者と20歳未満の子のみ（養子含む））","3世代世帯（世帯主を中心とした直系3世代以上）","その他世帯","その他の場合自由記述"," 性別\n\n１．男\n２．女\n３．不明・その他","年齢"," 性別\n\n１．男\n２．女\n３．不明・その他","年齢"," 性別\n\n１．男\n２．女\n３．不明・その他","年齢"," 性別\n\n１．男\n２．女\n３．不明・その他","年齢"," 性別\n\n１．男\n２．女\n３．不明・その他","年齢"," 性別\n\n１．男\n２．女\n３．不明・その他","年齢"," 性別\n\n１．男\n２．女\n３．不明・その他","年齢"," 性別\n\n１．男\n２．女\n３．不明・その他","年齢","生活困窮部署","障害担当部署","高齢担当部署（介護含む）","子ども・子育て担当部署","生活保護担当部署","保健担当部署","住宅担当部署","教育委員会または教育担当部署","税担当部署","保険・年金担当部署","　その他","　自由記述","生活困窮者自立相談支援機関","福祉事務所未設置町村による相談支援事業の相談機関","地域包括支援センター","基幹相談支援機関","障害者相談事業の相談機関","子ども家庭総合支援拠点","子育て世代包括支援センター","利用者支援事業の相談機関","成年後見中核機関","社会福祉協議会","保健所","児童相談所","婦人相談所","精神保健福祉センター","ひきこもり地域支援センター","医療機関","警察","司法関係の機関、","居宅介護支援事業所","その他の機関","自由記述","ハローワーク","職業訓練機関","就労準備支援機関","地域若者サポートステーション","就労支援法人・団体（就労訓練事業を含む）","一般企業","各種協同組合（生協等）","農業者・農業団体","医療機関","（医療機関の内、無料低額診療実施機関）","行政の保健担当部署","行政の障害担当部署","基幹相談支援センター","精神保健福祉センター","障害者就業・生活支援センター","障害者就労支援事業所","その他障害者支援機関・施設","行政の高齢担当部署","地域包括支援センター","居宅介護支援事業所・その他介護事業所","行政の子ども家庭担当部署","教育委員会","保育所・幼稚園・子ども園","小・中・高（特別支援含む）学校","大学等（高等専門学校、専修学校、各種学校含む）","その他教育機関","家庭児童相談室（福祉事務所）","児童相談所・児童家庭支援センター","児童福祉施設","地域子育て支援拠点","その他子育て支援機関","行政の人権担当部署","男女共同参画センター","婦人相談所・配偶者暴力相談支援センター","福祉事務所（生活保護担当部署）","ホームレス支援機関","一時保護施設","警察","更生保護施設・自立準備ホーム","地域生活定着支援センター","自立相談支援機関","行政の税担当部署","行政の保険・年金担当部署（年金事務所含む）","社会保険労務士","家計改善支援機関","食糧支援関係団体（フードバンク等）","小口貸付（生活福祉資金除く）","社会福祉協議会（生活福祉資金）","社会福祉協議会（日常生活自立支援事業）","成年後見人制度の支援機関","法テラス・弁護士・司法書士","消費生活センター・消費生活相談窓口・多重債務者等相談窓口","行政の住宅施策担当部局（居住支援協議会）","居住支援法人","不動産・保証関係会社","他地域の生活困窮者自立相談支援機関","民生委員・児童委員","外国人支援団体・相談窓口","ひきこもり支援機関","ＮＰＯ・ボランティア団体","商店街・商工会等経済団体","町内会・自治会、福祉委員、近隣住民","ライフライン民間事業者（電気・ガス・水道）","保健所（動物・ペットの多頭飼育等）","社会福祉協議会（資金、日常生活自立支援以外）","その他行政の担当部署","家族・親族・その他キーパーソン","その他","その他（詳細記入）","病気","けが","障害（手帳有）","障害（疑い）","自殺企図","その他メンタルヘルス（うつ・不眠・不安・依存症・適応障害）","住まい不安定","ホームレス","経済的困窮","（多重・過重）債務","家計管理の問題","就職活動困難","就職定着困難","生活習慣の乱れ","社会的孤立（ニート・ひきこもり含む）","家族関係・家族の問題","介護","子育て","不登校","非行","中卒・高校中退","ひとり親","DV・虐待","外国籍","刑余者","コミュニケーションが苦手","本人の能力の課題（識字・言語・理解等）","被災","その他（詳細記入）","課題の数の合計（COUNT）","ハローワーク","職業訓練機関","就労準備支援機関","地域若者サポートステーション","就労支援法人・団体（就労訓練事業を含む）","一般企業","各種協同組合（生協等）","農業者・農業団体","医療機関","（医療機関の内、無料低額診療実施機関）","行政の保健担当部署","行政の障害担当部署","基幹相談支援センター","精神保健福祉センター","障害者就業・生活支援センター","障害者就労支援事業所","その他障害者支援機関・施設","行政の高齢担当部署","地域包括支援センター","居宅介護支援事業所・その他介護事業所","行政の子ども家庭担当部署","教育委員会","保育所・幼稚園・子ども園","小・中・高（特別支援含む）学校","大学等（高等専門学校、専修学校、各種学校含む）","その他教育機関","家庭児童相談室（福祉事務所）","児童相談所・児童家庭支援センター","児童福祉施設","地域子育て支援拠点","その他子育て支援機関","行政の人権担当部署","男女共同参画センター","婦人相談所・配偶者暴力相談支援センター","福祉事務所（生活保護担当部署）","ホームレス支援機関","一時保護施設","警察","更生保護施設・自立準備ホーム","地域生活定着支援センター","自立相談支援機関","行政の税担当部署","行政の保険・年金担当部署（年金事務所含む）","社会保険労務士","家計改善支援機関","食糧支援関係団体（フードバンク等）","小口貸付（生活福祉資金除く）","社会福祉協議会（生活福祉資金）","社会福祉協議会（日常生活自立支援事業）","成年後見人制度の支援機関","法テラス・弁護士・司法書士","消費生活センター・消費生活相談窓口・多重債務者等相談窓口","行政の住宅施策担当部局（居住支援協議会）","居住支援法人","不動産・保証関係会社","他地域の生活困窮者自立相談支援機関","民生委員・児童委員","外国人支援団体・相談窓口","ひきこもり支援機関","ＮＰＯ・ボランティア団体","商店街・商工会等経済団体","町内会・自治会、福祉委員、近隣住民","ライフライン民間事業者（電気・ガス・水道）","保健所（動物・ペットの多頭飼育等）","社会福祉協議会（資金、日常生活自立支援以外）","その他行政の担当部署","家族・親族・その他キーパーソン","その他","その他（詳細記入）","生活保護適用","住まいの確保・安定","医療機関受診開始","健康状態の改善","障害手帳取得","自立意欲の向上・改善","対人関係・家族関係の改善","生活習慣の改善","孤立の解消","精神の安定","債務の整理","家計の改善","保険関係収入の増加","年金関係収入の増加","その他収入増加（一般就労以外）","就労収入増加（一般就労において、転職・勤務時間の増加等により増収した場合）","職場定着","一般就労開始（目的が継続的な就労（障害者雇用含む））","一般就労開始（目的が時限的）","雇用契約を伴う支援付き就労（就労訓練事業、就労継続A型等）","障害者サービス活用（就労継続B型、就労移行支援等）","自営業等雇用外の就労開始","就職活動開始","職業訓練の開始、就学","社会参加機会の増加","その他（自由記述）","初回プラン作成日","再プラン作成日（2回目）","再プラン作成日（3回目）","再プラン作成日（4回目）","再プラン作成日（5回目）","初回\n調査日","初回\n項目入力","2回目\n調査日","2回目\n項目入力","３回目\n調査日","3回目\n項目入力","4回目\n調査日","4回目\n項目入力","5回目\n調査日","5回目\n項目入力","初回\n調査日","初回\n項目入力","2回目\n調査日","2回目項目入力","３回目\n調査日","3回目\n項目入力","4回目\n調査日","4回目\n項目入力","5回目\n調査日","5回目\n項目入力","初回\n調査日","初回\n項目入力","2回目\n調査日","2回目\n項目入力","３回目\n調査日","3回目\n項目入力","4回目\n調査日","4回目\n項目入力","5回目\n調査日","5回目\n項目入力","初回\n調査日","初回\n項目入力","2回目\n調査日","2回目\n項目入力","３回目\n調査日","3回目\n項目入力","4回目\n調査日","4回目\n項目入力","5回目\n調査日","5回目\n項目入力","初回\n調査日","初回\n項目入力","2回目\n調査日","2回目\n項目入力","３回目\n調査日","3回目\n項目入力","4回目\n調査日","4回目\n項目入力","5回目\n調査日","5回目\n項目入力"]
[null,null,null,null,null,null,null,null,null,null,null,null,null,null,null,null,null,null,null,null,null,null,null,null,null,null,null,null,null,null,null,null,null,null,null,null,null,null,null,null,null,null,null,null,null,null,null,null,null,null,null,null,null,null,null,null,null,null,null,null,null,null,null,null,null,null,null,null,null,null,null,null,null,null,null,null,null,null,null,null,null,null,null,null,null,null,null,null,null,null,null,null,null,null,null,null,null,null,null,null,null,null,null,null,null,null,null,null,null,null,null,null,null,null,null,null,null,null,null,null,null,null,null,null,null,null,null,null,null,null,null,null,null,null,null,null,null,null,null,null,null,null,null,null,null,null,null,null,null,null,null,null,null,null,null,null,null,null,null,null,null,null,{"$f":"COUNTA(ED7:FE7)","v":0},null,null,null,null,null,null,null,null,null,null,null,null,null,null,null,null,null,null,null,null,null,null,null,null,null,null,null,null,null,null,null,null,null,null,null,null,null,null,null,null,null,null,null,null,null,null,null,null,null,null,null,null,null,null,null,null,null,null,null,null,null,null,null,null,null,null,null,null,null,null,null,null,null,null,null,null,null,null,null,null,null,null,null,null,null,null,null,null,null,null,null,null,null,null,null,null,null,null,null,null,null,null,null,null,null,null,null,null,null,null,null,null,null,null,null,null,null,null,null,null,null,null,null,null,null,null,null,null,null,null,null,null,null,null,null,null,null,null,null,null,null,null,null,null,null,null,null,null,null,null,null,{"$f":"DATEDIF($E7,$LB7,\"D\")","v":0},{"$f":"DATEDIF($E7,$LB7,\"M\")","v":0},{"$f":"DATEDIF($E7,$LB7,\"Y\")","v":0},{"$f":"COUNTA(BM7:EC7)","v":0},{"$f":"COUNTA(FH7:HX7)","v":0},{"$f":"LG7-LF7","v":0}]
[null,null,null,null,null,null,null,null,null,null,null,null,null,null,null,null,null,null,null,null,null,null,null,null,null,null,null,null,null,null,null,null,null,null,null,null,null,null,null,null,null,null,null,null,null,null,null,null,null,null,null,null,null,null,null,null,null,null,null,null,null,null,null,null,null,null,null,null,null,null,null,null,null,null,null,null,null,null,null,null,null,null,null,null,null,null,null,null,null,null,null,null,null,null,null,null,null,null,null,null,null,null,null,null,null,null,null,null,null,null,null,null,null,null,null,null,null,null,null,null,null,null,null,null,null,null,null,null,null,null,null,null,null,null,null,null,null,null,null,null,null,null,null,null,null,null,null,null,null,null,null,null,null,null,null,null,null,null,null,null,null,null,0,null,null,null,null,null,null,null,null,null,null,null,null,null,null,null,null,null,null,null,null,null,null,null,null,null,null,null,null,null,null,null,null,null,null,null,null,null,null,null,null,null,null,null,null,null,null,null,null,null,null,null,null,null,null,null,null,null,null,null,null,null,null,null,null,null,null,null,null,null,null,null,null,null,null,null,null,null,null,null,null,null,null,null,null,null,null,null,null,null,null,null,null,null,null,null,null,null,null,null,null,null,null,null,null,null,null,null,null,null,null,null,null,null,null,null,null,null,null,null,null,null,null,null,null,null,null,null,null,null,null,null,null,null,null,null,null,null,null,null,null,null,null,null,null,null,null,null,null,null,null,null,0,0,0,0,0,0]
[null,null,null,null,null,null,null,null,null,null,null,null,null,null,null,null,null,null,null,null,null,null,null,null,null,null,null,null,null,null,null,null,null,null,null,null,null,null,null,null,null,null,null,null,null,null,null,null,null,null,null,null,null,null,null,null,null,null,null,null,null,null,null,null,null,null,null,null,null,null,null,null,null,null,null,null,null,null,null,null,null,null,null,null,null,null,null,null,null,null,null,null,null,null,null,null,null,null,null,null,null,null,null,null,null,null,null,null,null,null,null,null,null,null,null,null,null,null,null,null,null,null,null,null,null,null,null,null,null,null,null,null,null,null,null,null,null,null,null,null,null,null,null,null,null,null,null,null,null,null,null,null,null,null,null,null,null,null,null,null,null,null,0,null,null,null,null,null,null,null,null,null,null,null,null,null,null,null,null,null,null,null,null,null,null,null,null,null,null,null,null,null,null,null,null,null,null,null,null,null,null,null,null,null,null,null,null,null,null,null,null,null,null,null,null,null,null,null,null,null,null,null,null,null,null,null,null,null,null,null,null,null,null,null,null,null,null,null,null,null,null,null,null,null,null,null,null,null,null,null,null,null,null,null,null,null,null,null,null,null,null,null,null,null,null,null,null,null,null,null,null,null,null,null,null,null,null,null,null,null,null,null,null,null,null,null,null,null,null,null,null,null,null,null,null,null,null,null,null,null,null,null,null,null,null,null,null,null,null,null,null,null,null,null,0,0,0,0,0,0]
[null,null,null,null,null,null,null,null,null,null,null,null,null,null,null,null,null,null,null,null,null,null,null,null,null,null,null,null,null,null,null,null,null,null,null,null,null,null,null,null,null,null,null,null,null,null,null,null,null,null,null,null,null,null,null,null,null,null,null,null,null,null,null,null,null,null,null,null,null,null,null,null,null,null,null,null,null,null,null,null,null,null,null,null,null,null,null,null,null,null,null,null,null,null,null,null,null,null,null,null,null,null,null,null,null,null,null,null,null,null,null,null,null,null,null,null,null,null,null,null,null,null,null,null,null,null,null,null,null,null,null,null,null,null,null,null,null,null,null,null,null,null,null,null,null,null,null,null,null,null,null,null,null,null,null,null,null,null,null,null,null,null,0,null,null,null,null,null,null,null,null,null,null,null,null,null,null,null,null,null,null,null,null,null,null,null,null,null,null,null,null,null,null,null,null,null,null,null,null,null,null,null,null,null,null,null,null,null,null,null,null,null,null,null,null,null,null,null,null,null,null,null,null,null,null,null,null,null,null,null,null,null,null,null,null,null,null,null,null,null,null,null,null,null,null,null,null,null,null,null,null,null,null,null,null,null,null,null,null,null,null,null,null,null,null,null,null,null,null,null,null,null,null,null,null,null,null,null,null,null,null,null,null,null,null,null,null,null,null,null,null,null,null,null,null,null,null,null,null,null,null,null,null,null,null,null,null,null,null,null,null,null,null,null,0,0,0,0,0,0]
[null,null,null,null,null,null,null,null,null,null,null,null,null,null,null,null,null,null,null,null,null,null,null,null,null,null,null,null,null,null,null,null,null,null,null,null,null,null,null,null,null,null,null,null,null,null,null,null,null,null,null,null,null,null,null,null,null,null,null,null,null,null,null,null,null,null,null,null,null,null,null,null,null,null,null,null,null,null,null,null,null,null,null,null,null,null,null,null,null,null,null,null,null,null,null,null,null,null,null,null,null,null,null,null,null,null,null,null,null,null,null,null,null,null,null,null,null,null,null,null,null,null,null,null,null,null,null,null,null,null,null,null,null,null,null,null,null,null,null,null,null,null,null,null,null,null,null,null,null,null,null,null,null,null,null,null,null,null,null,null,null,null,0,null,null,null,null,null,null,null,null,null,null,null,null,null,null,null,null,null,null,null,null,null,null,null,null,null,null,null,null,null,null,null,null,null,null,null,null,null,null,null,null,null,null,null,null,null,null,null,null,null,null,null,null,null,null,null,null,null,null,null,null,null,null,null,null,null,null,null,null,null,null,null,null,null,null,null,null,null,null,null,null,null,null,null,null,null,null,null,null,null,null,null,null,null,null,null,null,null,null,null,null,null,null,null,null,null,null,null,null,null,null,null,null,null,null,null,null,null,null,null,null,null,null,null,null,null,null,null,null,null,null,null,null,null,null,null,null,null,null,null,null,null,null,null,null,null,null,null,null,null,null,null,0,0,0,0,0,0]
[null,null,null,null,null,null,null,null,null,null,null,null,null,null,null,null,null,null,null,null,null,null,null,null,null,null,null,null,null,null,null,null,null,null,null,null,null,null,null,null,null,null,null,null,null,null,null,null,null,null,null,null,null,null,null,null,null,null,null,null,null,null,null,null,null,null,null,null,null,null,null,null,null,null,null,null,null,null,null,null,null,null,null,null,null,null,null,null,null,null,null,null,null,null,null,null,null,null,null,null,null,null,null,null,null,null,null,null,null,null,null,null,null,null,null,null,null,null,null,null,null,null,null,null,null,null,null,null,null,null,null,null,null,null,null,null,null,null,null,null,null,null,null,null,null,null,null,null,null,null,null,null,null,null,null,null,null,null,null,null,null,null,0,null,null,null,null,null,null,null,null,null,null,null,null,null,null,null,null,null,null,null,null,null,null,null,null,null,null,null,null,null,null,null,null,null,null,null,null,null,null,null,null,null,null,null,null,null,null,null,null,null,null,null,null,null,null,null,null,null,null,null,null,null,null,null,null,null,null,null,null,null,null,null,null,null,null,null,null,null,null,null,null,null,null,null,null,null,null,null,null,null,null,null,null,null,null,null,null,null,null,null,null,null,null,null,null,null,null,null,null,null,null,null,null,null,null,null,null,null,null,null,null,null,null,null,null,null,null,null,null,null,null,null,null,null,null,null,null,null,null,null,null,null,null,null,null,null,null,null,null,null,null,null,0,0,0,0,0,0]
[null,null,null,null,null,null,null,null,null,null,null,null,null,null,null,null,null,null,null,null,null,null,null,null,null,null,null,null,null,null,null,null,null,null,null,null,null,null,null,null,null,null,null,null,null,null,null,null,null,null,null,null,null,null,null,null,null,null,null,null,null,null,null,null,null,null,null,null,null,null,null,null,null,null,null,null,null,null,null,null,null,null,null,null,null,null,null,null,null,null,null,null,null,null,null,null,null,null,null,null,null,null,null,null,null,null,null,null,null,null,null,null,null,null,null,null,null,null,null,null,null,null,null,null,null,null,null,null,null,null,null,null,null,null,null,null,null,null,null,null,null,null,null,null,null,null,null,null,null,null,null,null,null,null,null,null,null,null,null,null,null,null,0,null,null,null,null,null,null,null,null,null,null,null,null,null,null,null,null,null,null,null,null,null,null,null,null,null,null,null,null,null,null,null,null,null,null,null,null,null,null,null,null,null,null,null,null,null,null,null,null,null,null,null,null,null,null,null,null,null,null,null,null,null,null,null,null,null,null,null,null,null,null,null,null,null,null,null,null,null,null,null,null,null,null,null,null,null,null,null,null,null,null,null,null,null,null,null,null,null,null,null,null,null,null,null,null,null,null,null,null,null,null,null,null,null,null,null,null,null,null,null,null,null,null,null,null,null,null,null,null,null,null,null,null,null,null,null,null,null,null,null,null,null,null,null,null,null,null,null,null,null,null,null,0,0,0,0,0,0]
[null,null,null,null,null,null,null,null,null,null,null,null,null,null,null,null,null,null,null,null,null,null,null,null,null,null,null,null,null,null,null,null,null,null,null,null,null,null,null,null,null,null,null,null,null,null,null,null,null,null,null,null,null,null,null,null,null,null,null,null,null,null,null,null,null,null,null,null,null,null,null,null,null,null,null,null,null,null,null,null,null,null,null,null,null,null,null,null,null,null,null,null,null,null,null,null,null,null,null,null,null,null,null,null,null,null,null,null,null,null,null,null,null,null,null,null,null,null,null,null,null,null,null,null,null,null,null,null,null,null,null,null,null,null,null,null,null,null,null,null,null,null,null,null,null,null,null,null,null,null,null,null,null,null,null,null,null,null,null,null,null,null,0,null,null,null,null,null,null,null,null,null,null,null,null,null,null,null,null,null,null,null,null,null,null,null,null,null,null,null,null,null,null,null,null,null,null,null,null,null,null,null,null,null,null,null,null,null,null,null,null,null,null,null,null,null,null,null,null,null,null,null,null,null,null,null,null,null,null,null,null,null,null,null,null,null,null,null,null,null,null,null,null,null,null,null,null,null,null,null,null,null,null,null,null,null,null,null,null,null,null,null,null,null,null,null,null,null,null,null,null,null,null,null,null,null,null,null,null,null,null,null,null,null,null,null,null,null,null,null,null,null,null,null,null,null,null,null,null,null,null,null,null,null,null,null,null,null,null,null,null,null,null,null,0,0,0,0,0,0]
[null,null,null,null,null,null,null,null,null,null,null,null,null,null,null,null,null,null,null,null,null,null,null,null,null,null,null,null,null,null,null,null,null,null,null,null,null,null,null,null,null,null,null,null,null,null,null,null,null,null,null,null,null,null,null,null,null,null,null,null,null,null,null,null,null,null,null,null,null,null,null,null,null,null,null,null,null,null,null,null,null,null,null,null,null,null,null,null,null,null,null,null,null,null,null,null,null,null,null,null,null,null,null,null,null,null,null,null,null,null,null,null,null,null,null,null,null,null,null,null,null,null,null,null,null,null,null,null,null,null,null,null,null,null,null,null,null,null,null,null,null,null,null,null,null,null,null,null,null,null,null,null,null,null,null,null,null,null,null,null,null,null,0,null,null,null,null,null,null,null,null,null,null,null,null,null,null,null,null,null,null,null,null,null,null,null,null,null,null,null,null,null,null,null,null,null,null,null,null,null,null,null,null,null,null,null,null,null,null,null,null,null,null,null,null,null,null,null,null,null,null,null,null,null,null,null,null,null,null,null,null,null,null,null,null,null,null,null,null,null,null,null,null,null,null,null,null,null,null,null,null,null,null,null,null,null,null,null,null,null,null,null,null,null,null,null,null,null,null,null,null,null,null,null,null,null,null,null,null,null,null,null,null,null,null,null,null,null,null,null,null,null,null,null,null,null,null,null,null,null,null,null,null,null,null,null,null,null,null,null,null,null,null,null,0,0,0,0,0,0]
[null,null,null,null,null,null,null,null,null,null,null,null,null,null,null,null,null,null,null,null,null,null,null,null,null,null,null,null,null,null,null,null,null,null,null,null,null,null,null,null,null,null,null,null,null,null,null,null,null,null,null,null,null,null,null,null,null,null,null,null,null,null,null,null,null,null,null,null,null,null,null,null,null,null,null,null,null,null,null,null,null,null,null,null,null,null,null,null,null,null,null,null,null,null,null,null,null,null,null,null,null,null,null,null,null,null,null,null,null,null,null,null,null,null,null,null,null,null,null,null,null,null,null,null,null,null,null,null,null,null,null,null,null,null,null,null,null,null,null,null,null,null,null,null,null,null,null,null,null,null,null,null,null,null,null,null,null,null,null,null,null,null,0,null,null,null,null,null,null,null,null,null,null,null,null,null,null,null,null,null,null,null,null,null,null,null,null,null,null,null,null,null,null,null,null,null,null,null,null,null,null,null,null,null,null,null,null,null,null,null,null,null,null,null,null,null,null,null,null,null,null,null,null,null,null,null,null,null,null,null,null,null,null,null,null,null,null,null,null,null,null,null,null,null,null,null,null,null,null,null,null,null,null,null,null,null,null,null,null,null,null,null,null,null,null,null,null,null,null,null,null,null,null,null,null,null,null,null,null,null,null,null,null,null,null,null,null,null,null,null,null,null,null,null,null,null,null,null,null,null,null,null,null,null,null,null,null,null,null,null,null,null,null,null,0,0,0,0,0,0]
[null,null,null,null,null,null,null,null,null,null,null,null,null,null,null,null,null,null,null,null,null,null,null,null,null,null,null,null,null,null,null,null,null,null,null,null,null,null,null,null,null,null,null,null,null,null,null,null,null,null,null,null,null,null,null,null,null,null,null,null,null,null,null,null,null,null,null,null,null,null,null,null,null,null,null,null,null,null,null,null,null,null,null,null,null,null,null,null,null,null,null,null,null,null,null,null,null,null,null,null,null,null,null,null,null,null,null,null,null,null,null,null,null,null,null,null,null,null,null,null,null,null,null,null,null,null,null,null,null,null,null,null,null,null,null,null,null,null,null,null,null,null,null,null,null,null,null,null,null,null,null,null,null,null,null,null,null,null,null,null,null,null,0,null,null,null,null,null,null,null,null,null,null,null,null,null,null,null,null,null,null,null,null,null,null,null,null,null,null,null,null,null,null,null,null,null,null,null,null,null,null,null,null,null,null,null,null,null,null,null,null,null,null,null,null,null,null,null,null,null,null,null,null,null,null,null,null,null,null,null,null,null,null,null,null,null,null,null,null,null,null,null,null,null,null,null,null,null,null,null,null,null,null,null,null,null,null,null,null,null,null,null,null,null,null,null,null,null,null,null,null,null,null,null,null,null,null,null,null,null,null,null,null,null,null,null,null,null,null,null,null,null,null,null,null,null,null,null,null,null,null,null,null,null,null,null,null,null,null,null,null,null,null,null,0,0,0,0,0,0]
[null,null,null,null,null,null,null,null,null,null,null,null,null,null,null,null,null,null,null,null,null,null,null,null,null,null,null,null,null,null,null,null,null,null,null,null,null,null,null,null,null,null,null,null,null,null,null,null,null,null,null,null,null,null,null,null,null,null,null,null,null,null,null,null,null,null,null,null,null,null,null,null,null,null,null,null,null,null,null,null,null,null,null,null,null,null,null,null,null,null,null,null,null,null,null,null,null,null,null,null,null,null,null,null,null,null,null,null,null,null,null,null,null,null,null,null,null,null,null,null,null,null,null,null,null,null,null,null,null,null,null,null,null,null,null,null,null,null,null,null,null,null,null,null,null,null,null,null,null,null,null,null,null,null,null,null,null,null,null,null,null,null,0,null,null,null,null,null,null,null,null,null,null,null,null,null,null,null,null,null,null,null,null,null,null,null,null,null,null,null,null,null,null,null,null,null,null,null,null,null,null,null,null,null,null,null,null,null,null,null,null,null,null,null,null,null,null,null,null,null,null,null,null,null,null,null,null,null,null,null,null,null,null,null,null,null,null,null,null,null,null,null,null,null,null,null,null,null,null,null,null,null,null,null,null,null,null,null,null,null,null,null,null,null,null,null,null,null,null,null,null,null,null,null,null,null,null,null,null,null,null,null,null,null,null,null,null,null,null,null,null,null,null,null,null,null,null,null,null,null,null,null,null,null,null,null,null,null,null,null,null,null,null,null,0,0,0,0,0,0]
[null,null,null,null,null,null,null,null,null,null,null,null,null,null,null,null,null,null,null,null,null,null,null,null,null,null,null,null,null,null,null,null,null,null,null,null,null,null,null,null,null,null,null,null,null,null,null,null,null,null,null,null,null,null,null,null,null,null,null,null,null,null,null,null,null,null,null,null,null,null,null,null,null,null,null,null,null,null,null,null,null,null,null,null,null,null,null,null,null,null,null,null,null,null,null,null,null,null,null,null,null,null,null,null,null,null,null,null,null,null,null,null,null,null,null,null,null,null,null,null,null,null,null,null,null,null,null,null,null,null,null,null,null,null,null,null,null,null,null,null,null,null,null,null,null,null,null,null,null,null,null,null,null,null,null,null,null,null,null,null,null,null,0,null,null,null,null,null,null,null,null,null,null,null,null,null,null,null,null,null,null,null,null,null,null,null,null,null,null,null,null,null,null,null,null,null,null,null,null,null,null,null,null,null,null,null,null,null,null,null,null,null,null,null,null,null,null,null,null,null,null,null,null,null,null,null,null,null,null,null,null,null,null,null,null,null,null,null,null,null,null,null,null,null,null,null,null,null,null,null,null,null,null,null,null,null,null,null,null,null,null,null,null,null,null,null,null,null,null,null,null,null,null,null,null,null,null,null,null,null,null,null,null,null,null,null,null,null,null,null,null,null,null,null,null,null,null,null,null,null,null,null,null,null,null,null,null,null,null,null,null,null,null,null,0,0,0,0,0,0]
[null,null,null,null,null,null,null,null,null,null,null,null,null,null,null,null,null,null,null,null,null,null,null,null,null,null,null,null,null,null,null,null,null,null,null,null,null,null,null,null,null,null,null,null,null,null,null,null,null,null,null,null,null,null,null,null,null,null,null,null,null,null,null,null,null,null,null,null,null,null,null,null,null,null,null,null,null,null,null,null,null,null,null,null,null,null,null,null,null,null,null,null,null,null,null,null,null,null,null,null,null,null,null,null,null,null,null,null,null,null,null,null,null,null,null,null,null,null,null,null,null,null,null,null,null,null,null,null,null,null,null,null,null,null,null,null,null,null,null,null,null,null,null,null,null,null,null,null,null,null,null,null,null,null,null,null,null,null,null,null,null,null,0,null,null,null,null,null,null,null,null,null,null,null,null,null,null,null,null,null,null,null,null,null,null,null,null,null,null,null,null,null,null,null,null,null,null,null,null,null,null,null,null,null,null,null,null,null,null,null,null,null,null,null,null,null,null,null,null,null,null,null,null,null,null,null,null,null,null,null,null,null,null,null,null,null,null,null,null,null,null,null,null,null,null,null,null,null,null,null,null,null,null,null,null,null,null,null,null,null,null,null,null,null,null,null,null,null,null,null,null,null,null,null,null,null,null,null,null,null,null,null,null,null,null,null,null,null,null,null,null,null,null,null,null,null,null,null,null,null,null,null,null,null,null,null,null,null,null,null,null,null,null,null,0,0,0,0,0,0]
[null,null,null,null,null,null,null,null,null,null,null,null,null,null,null,null,null,null,null,null,null,null,null,null,null,null,null,null,null,null,null,null,null,null,null,null,null,null,null,null,null,null,null,null,null,null,null,null,null,null,null,null,null,null,null,null,null,null,null,null,null,null,null,null,null,null,null,null,null,null,null,null,null,null,null,null,null,null,null,null,null,null,null,null,null,null,null,null,null,null,null,null,null,null,null,null,null,null,null,null,null,null,null,null,null,null,null,null,null,null,null,null,null,null,null,null,null,null,null,null,null,null,null,null,null,null,null,null,null,null,null,null,null,null,null,null,null,null,null,null,null,null,null,null,null,null,null,null,null,null,null,null,null,null,null,null,null,null,null,null,null,null,0,null,null,null,null,null,null,null,null,null,null,null,null,null,null,null,null,null,null,null,null,null,null,null,null,null,null,null,null,null,null,null,null,null,null,null,null,null,null,null,null,null,null,null,null,null,null,null,null,null,null,null,null,null,null,null,null,null,null,null,null,null,null,null,null,null,null,null,null,null,null,null,null,null,null,null,null,null,null,null,null,null,null,null,null,null,null,null,null,null,null,null,null,null,null,null,null,null,null,null,null,null,null,null,null,null,null,null,null,null,null,null,null,null,null,null,null,null,null,null,null,null,null,null,null,null,null,null,null,null,null,null,null,null,null,null,null,null,null,null,null,null,null,null,null,null,null,null,null,null,null,null,0,0,0,0,0,0]
[null,null,null,null,null,null,null,null,null,null,null,null,null,null,null,null,null,null,null,null,null,null,null,null,null,null,null,null,null,null,null,null,null,null,null,null,null,null,null,null,null,null,null,null,null,null,null,null,null,null,null,null,null,null,null,null,null,null,null,null,null,null,null,null,null,null,null,null,null,null,null,null,null,null,null,null,null,null,null,null,null,null,null,null,null,null,null,null,null,null,null,null,null,null,null,null,null,null,null,null,null,null,null,null,null,null,null,null,null,null,null,null,null,null,null,null,null,null,null,null,null,null,null,null,null,null,null,null,null,null,null,null,null,null,null,null,null,null,null,null,null,null,null,null,null,null,null,null,null,null,null,null,null,null,null,null,null,null,null,null,null,null,0,null,null,null,null,null,null,null,null,null,null,null,null,null,null,null,null,null,null,null,null,null,null,null,null,null,null,null,null,null,null,null,null,null,null,null,null,null,null,null,null,null,null,null,null,null,null,null,null,null,null,null,null,null,null,null,null,null,null,null,null,null,null,null,null,null,null,null,null,null,null,null,null,null,null,null,null,null,null,null,null,null,null,null,null,null,null,null,null,null,null,null,null,null,null,null,null,null,null,null,null,null,null,null,null,null,null,null,null,null,null,null,null,null,null,null,null,null,null,null,null,null,null,null,null,null,null,null,null,null,null,null,null,null,null,null,null,null,null,null,null,null,null,null,null,null,null,null,null,null,null,null,0,0,0,0,0,0]
[null,null,null,null,null,null,null,null,null,null,null,null,null,null,null,null,null,null,null,null,null,null,null,null,null,null,null,null,null,null,null,null,null,null,null,null,null,null,null,null,null,null,null,null,null,null,null,null,null,null,null,null,null,null,null,null,null,null,null,null,null,null,null,null,null,null,null,null,null,null,null,null,null,null,null,null,null,null,null,null,null,null,null,null,null,null,null,null,null,null,null,null,null,null,null,null,null,null,null,null,null,null,null,null,null,null,null,null,null,null,null,null,null,null,null,null,null,null,null,null,null,null,null,null,null,null,null,null,null,null,null,null,null,null,null,null,null,null,null,null,null,null,null,null,null,null,null,null,null,null,null,null,null,null,null,null,null,null,null,null,null,null,0,null,null,null,null,null,null,null,null,null,null,null,null,null,null,null,null,null,null,null,null,null,null,null,null,null,null,null,null,null,null,null,null,null,null,null,null,null,null,null,null,null,null,null,null,null,null,null,null,null,null,null,null,null,null,null,null,null,null,null,null,null,null,null,null,null,null,null,null,null,null,null,null,null,null,null,null,null,null,null,null,null,null,null,null,null,null,null,null,null,null,null,null,null,null,null,null,null,null,null,null,null,null,null,null,null,null,null,null,null,null,null,null,null,null,null,null,null,null,null,null,null,null,null,null,null,null,null,null,null,null,null,null,null,null,null,null,null,null,null,null,null,null,null,null,null,null,null,null,null,null,null,0,0,0,0,0,0]
[null,null,null,null,null,null,null,null,null,null,null,null,null,null,null,null,null,null,null,null,null,null,null,null,null,null,null,null,null,null,null,null,null,null,null,null,null,null,null,null,null,null,null,null,null,null,null,null,null,null,null,null,null,null,null,null,null,null,null,null,null,null,null,null,null,null,null,null,null,null,null,null,null,null,null,null,null,null,null,null,null,null,null,null,null,null,null,null,null,null,null,null,null,null,null,null,null,null,null,null,null,null,null,null,null,null,null,null,null,null,null,null,null,null,null,null,null,null,null,null,null,null,null,null,null,null,null,null,null,null,null,null,null,null,null,null,null,null,null,null,null,null,null,null,null,null,null,null,null,null,null,null,null,null,null,null,null,null,null,null,null,null,0,null,null,null,null,null,null,null,null,null,null,null,null,null,null,null,null,null,null,null,null,null,null,null,null,null,null,null,null,null,null,null,null,null,null,null,null,null,null,null,null,null,null,null,null,null,null,null,null,null,null,null,null,null,null,null,null,null,null,null,null,null,null,null,null,null,null,null,null,null,null,null,null,null,null,null,null,null,null,null,null,null,null,null,null,null,null,null,null,null,null,null,null,null,null,null,null,null,null,null,null,null,null,null,null,null,null,null,null,null,null,null,null,null,null,null,null,null,null,null,null,null,null,null,null,null,null,null,null,null,null,null,null,null,null,null,null,null,null,null,null,null,null,null,null,null,null,null,null,null,null,null,0,0,0,0,0,0]
[null,null,null,null,null,null,null,null,null,null,null,null,null,null,null,null,null,null,null,null,null,null,null,null,null,null,null,null,null,null,null,null,null,null,null,null,null,null,null,null,null,null,null,null,null,null,null,null,null,null,null,null,null,null,null,null,null,null,null,null,null,null,null,null,null,null,null,null,null,null,null,null,null,null,null,null,null,null,null,null,null,null,null,null,null,null,null,null,null,null,null,null,null,null,null,null,null,null,null,null,null,null,null,null,null,null,null,null,null,null,null,null,null,null,null,null,null,null,null,null,null,null,null,null,null,null,null,null,null,null,null,null,null,null,null,null,null,null,null,null,null,null,null,null,null,null,null,null,null,null,null,null,null,null,null,null,null,null,null,null,null,null,0,null,null,null,null,null,null,null,null,null,null,null,null,null,null,null,null,null,null,null,null,null,null,null,null,null,null,null,null,null,null,null,null,null,null,null,null,null,null,null,null,null,null,null,null,null,null,null,null,null,null,null,null,null,null,null,null,null,null,null,null,null,null,null,null,null,null,null,null,null,null,null,null,null,null,null,null,null,null,null,null,null,null,null,null,null,null,null,null,null,null,null,null,null,null,null,null,null,null,null,null,null,null,null,null,null,null,null,null,null,null,null,null,null,null,null,null,null,null,null,null,null,null,null,null,null,null,null,null,null,null,null,null,null,null,null,null,null,null,null,null,null,null,null,null,null,null,null,null,null,null,null,0,0,0,0,0,0]
[null,null,null,null,null,null,null,null,null,null,null,null,null,null,null,null,null,null,null,null,null,null,null,null,null,null,null,null,null,null,null,null,null,null,null,null,null,null,null,null,null,null,null,null,null,null,null,null,null,null,null,null,null,null,null,null,null,null,null,null,null,null,null,null,null,null,null,null,null,null,null,null,null,null,null,null,null,null,null,null,null,null,null,null,null,null,null,null,null,null,null,null,null,null,null,null,null,null,null,null,null,null,null,null,null,null,null,null,null,null,null,null,null,null,null,null,null,null,null,null,null,null,null,null,null,null,null,null,null,null,null,null,null,null,null,null,null,null,null,null,null,null,null,null,null,null,null,null,null,null,null,null,null,null,null,null,null,null,null,null,null,null,0,null,null,null,null,null,null,null,null,null,null,null,null,null,null,null,null,null,null,null,null,null,null,null,null,null,null,null,null,null,null,null,null,null,null,null,null,null,null,null,null,null,null,null,null,null,null,null,null,null,null,null,null,null,null,null,null,null,null,null,null,null,null,null,null,null,null,null,null,null,null,null,null,null,null,null,null,null,null,null,null,null,null,null,null,null,null,null,null,null,null,null,null,null,null,null,null,null,null,null,null,null,null,null,null,null,null,null,null,null,null,null,null,null,null,null,null,null,null,null,null,null,null,null,null,null,null,null,null,null,null,null,null,null,null,null,null,null,null,null,null,null,null,null,null,null,null,null,null,null,null,null,0,0,0,0,0,0]
[null,null,null,null,null,null,null,null,null,null,null,null,null,null,null,null,null,null,null,null,null,null,null,null,null,null,null,null,null,null,null,null,null,null,null,null,null,null,null,null,null,null,null,null,null,null,null,null,null,null,null,null,null,null,null,null,null,null,null,null,null,null,null,null,null,null,null,null,null,null,null,null,null,null,null,null,null,null,null,null,null,null,null,null,null,null,null,null,null,null,null,null,null,null,null,null,null,null,null,null,null,null,null,null,null,null,null,null,null,null,null,null,null,null,null,null,null,null,null,null,null,null,null,null,null,null,null,null,null,null,null,null,null,null,null,null,null,null,null,null,null,null,null,null,null,null,null,null,null,null,null,null,null,null,null,null,null,null,null,null,null,null,0,null,null,null,null,null,null,null,null,null,null,null,null,null,null,null,null,null,null,null,null,null,null,null,null,null,null,null,null,null,null,null,null,null,null,null,null,null,null,null,null,null,null,null,null,null,null,null,null,null,null,null,null,null,null,null,null,null,null,null,null,null,null,null,null,null,null,null,null,null,null,null,null,null,null,null,null,null,null,null,null,null,null,null,null,null,null,null,null,null,null,null,null,null,null,null,null,null,null,null,null,null,null,null,null,null,null,null,null,null,null,null,null,null,null,null,null,null,null,null,null,null,null,null,null,null,null,null,null,null,null,null,null,null,null,null,null,null,null,null,null,null,null,null,null,null,null,null,null,null,null,null,0,0,0,0,0,0]
[null,null,null,null,null,null,null,null,null,null,null,null,null,null,null,null,null,null,null,null,null,null,null,null,null,null,null,null,null,null,null,null,null,null,null,null,null,null,null,null,null,null,null,null,null,null,null,null,null,null,null,null,null,null,null,null,null,null,null,null,null,null,null,null,null,null,null,null,null,null,null,null,null,null,null,null,null,null,null,null,null,null,null,null,null,null,null,null,null,null,null,null,null,null,null,null,null,null,null,null,null,null,null,null,null,null,null,null,null,null,null,null,null,null,null,null,null,null,null,null,null,null,null,null,null,null,null,null,null,null,null,null,null,null,null,null,null,null,null,null,null,null,null,null,null,null,null,null,null,null,null,null,null,null,null,null,null,null,null,null,null,null,0,null,null,null,null,null,null,null,null,null,null,null,null,null,null,null,null,null,null,null,null,null,null,null,null,null,null,null,null,null,null,null,null,null,null,null,null,null,null,null,null,null,null,null,null,null,null,null,null,null,null,null,null,null,null,null,null,null,null,null,null,null,null,null,null,null,null,null,null,null,null,null,null,null,null,null,null,null,null,null,null,null,null,null,null,null,null,null,null,null,null,null,null,null,null,null,null,null,null,null,null,null,null,null,null,null,null,null,null,null,null,null,null,null,null,null,null,null,null,null,null,null,null,null,null,null,null,null,null,null,null,null,null,null,null,null,null,null,null,null,null,null,null,null,null,null,null,null,null,null,null,null,0,0,0,0,0,0]
[null,null,null,null,null,null,null,null,null,null,null,null,null,null,null,null,null,null,null,null,null,null,null,null,null,null,null,null,null,null,null,null,null,null,null,null,null,null,null,null,null,null,null,null,null,null,null,null,null,null,null,null,null,null,null,null,null,null,null,null,null,null,null,null,null,null,null,null,null,null,null,null,null,null,null,null,null,null,null,null,null,null,null,null,null,null,null,null,null,null,null,null,null,null,null,null,null,null,null,null,null,null,null,null,null,null,null,null,null,null,null,null,null,null,null,null,null,null,null,null,null,null,null,null,null,null,null,null,null,null,null,null,null,null,null,null,null,null,null,null,null,null,null,null,null,null,null,null,null,null,null,null,null,null,null,null,null,null,null,null,null,null,0,null,null,null,null,null,null,null,null,null,null,null,null,null,null,null,null,null,null,null,null,null,null,null,null,null,null,null,null,null,null,null,null,null,null,null,null,null,null,null,null,null,null,null,null,null,null,null,null,null,null,null,null,null,null,null,null,null,null,null,null,null,null,null,null,null,null,null,null,null,null,null,null,null,null,null,null,null,null,null,null,null,null,null,null,null,null,null,null,null,null,null,null,null,null,null,null,null,null,null,null,null,null,null,null,null,null,null,null,null,null,null,null,null,null,null,null,null,null,null,null,null,null,null,null,null,null,null,null,null,null,null,null,null,null,null,null,null,null,null,null,null,null,null,null,null,null,null,null,null,null,null,0,0,0,0,0,0]
[null,null,null,null,null,null,null,null,null,null,null,null,null,null,null,null,null,null,null,null,null,null,null,null,null,null,null,null,null,null,null,null,null,null,null,null,null,null,null,null,null,null,null,null,null,null,null,null,null,null,null,null,null,null,null,null,null,null,null,null,null,null,null,null,null,null,null,null,null,null,null,null,null,null,null,null,null,null,null,null,null,null,null,null,null,null,null,null,null,null,null,null,null,null,null,null,null,null,null,null,null,null,null,null,null,null,null,null,null,null,null,null,null,null,null,null,null,null,null,null,null,null,null,null,null,null,null,null,null,null,null,null,null,null,null,null,null,null,null,null,null,null,null,null,null,null,null,null,null,null,null,null,null,null,null,null,null,null,null,null,null,null,0,null,null,null,null,null,null,null,null,null,null,null,null,null,null,null,null,null,null,null,null,null,null,null,null,null,null,null,null,null,null,null,null,null,null,null,null,null,null,null,null,null,null,null,null,null,null,null,null,null,null,null,null,null,null,null,null,null,null,null,null,null,null,null,null,null,null,null,null,null,null,null,null,null,null,null,null,null,null,null,null,null,null,null,null,null,null,null,null,null,null,null,null,null,null,null,null,null,null,null,null,null,null,null,null,null,null,null,null,null,null,null,null,null,null,null,null,null,null,null,null,null,null,null,null,null,null,null,null,null,null,null,null,null,null,null,null,null,null,null,null,null,null,null,null,null,null,null,null,null,null,null,0,0,0,0,0,0]
[null,null,null,null,null,null,null,null,null,null,null,null,null,null,null,null,null,null,null,null,null,null,null,null,null,null,null,null,null,null,null,null,null,null,null,null,null,null,null,null,null,null,null,null,null,null,null,null,null,null,null,null,null,null,null,null,null,null,null,null,null,null,null,null,null,null,null,null,null,null,null,null,null,null,null,null,null,null,null,null,null,null,null,null,null,null,null,null,null,null,null,null,null,null,null,null,null,null,null,null,null,null,null,null,null,null,null,null,null,null,null,null,null,null,null,null,null,null,null,null,null,null,null,null,null,null,null,null,null,null,null,null,null,null,null,null,null,null,null,null,null,null,null,null,null,null,null,null,null,null,null,null,null,null,null,null,null,null,null,null,null,null,0,null,null,null,null,null,null,null,null,null,null,null,null,null,null,null,null,null,null,null,null,null,null,null,null,null,null,null,null,null,null,null,null,null,null,null,null,null,null,null,null,null,null,null,null,null,null,null,null,null,null,null,null,null,null,null,null,null,null,null,null,null,null,null,null,null,null,null,null,null,null,null,null,null,null,null,null,null,null,null,null,null,null,null,null,null,null,null,null,null,null,null,null,null,null,null,null,null,null,null,null,null,null,null,null,null,null,null,null,null,null,null,null,null,null,null,null,null,null,null,null,null,null,null,null,null,null,null,null,null,null,null,null,null,null,null,null,null,null,null,null,null,null,null,null,null,null,null,null,null,null,null,0,0,0,0,0,0]
[null,null,null,null,null,null,null,null,null,null,null,null,null,null,null,null,null,null,null,null,null,null,null,null,null,null,null,null,null,null,null,null,null,null,null,null,null,null,null,null,null,null,null,null,null,null,null,null,null,null,null,null,null,null,null,null,null,null,null,null,null,null,null,null,null,null,null,null,null,null,null,null,null,null,null,null,null,null,null,null,null,null,null,null,null,null,null,null,null,null,null,null,null,null,null,null,null,null,null,null,null,null,null,null,null,null,null,null,null,null,null,null,null,null,null,null,null,null,null,null,null,null,null,null,null,null,null,null,null,null,null,null,null,null,null,null,null,null,null,null,null,null,null,null,null,null,null,null,null,null,null,null,null,null,null,null,null,null,null,null,null,null,0,null,null,null,null,null,null,null,null,null,null,null,null,null,null,null,null,null,null,null,null,null,null,null,null,null,null,null,null,null,null,null,null,null,null,null,null,null,null,null,null,null,null,null,null,null,null,null,null,null,null,null,null,null,null,null,null,null,null,null,null,null,null,null,null,null,null,null,null,null,null,null,null,null,null,null,null,null,null,null,null,null,null,null,null,null,null,null,null,null,null,null,null,null,null,null,null,null,null,null,null,null,null,null,null,null,null,null,null,null,null,null,null,null,null,null,null,null,null,null,null,null,null,null,null,null,null,null,null,null,null,null,null,null,null,null,null,null,null,null,null,null,null,null,null,null,null,null,null,null,null,null,0,0,0,0,0,0]
[null,null,null,null,null,null,null,null,null,null,null,null,null,null,null,null,null,null,null,null,null,null,null,null,null,null,null,null,null,null,null,null,null,null,null,null,null,null,null,null,null,null,null,null,null,null,null,null,null,null,null,null,null,null,null,null,null,null,null,null,null,null,null,null,null,null,null,null,null,null,null,null,null,null,null,null,null,null,null,null,null,null,null,null,null,null,null,null,null,null,null,null,null,null,null,null,null,null,null,null,null,null,null,null,null,null,null,null,null,null,null,null,null,null,null,null,null,null,null,null,null,null,null,null,null,null,null,null,null,null,null,null,null,null,null,null,null,null,null,null,null,null,null,null,null,null,null,null,null,null,null,null,null,null,null,null,null,null,null,null,null,null,0,null,null,null,null,null,null,null,null,null,null,null,null,null,null,null,null,null,null,null,null,null,null,null,null,null,null,null,null,null,null,null,null,null,null,null,null,null,null,null,null,null,null,null,null,null,null,null,null,null,null,null,null,null,null,null,null,null,null,null,null,null,null,null,null,null,null,null,null,null,null,null,null,null,null,null,null,null,null,null,null,null,null,null,null,null,null,null,null,null,null,null,null,null,null,null,null,null,null,null,null,null,null,null,null,null,null,null,null,null,null,null,null,null,null,null,null,null,null,null,null,null,null,null,null,null,null,null,null,null,null,null,null,null,null,null,null,null,null,null,null,null,null,null,null,null,null,null,null,null,null,null,0,0,0,0,0,0]
[null,null,null,null,null,null,null,null,null,null,null,null,null,null,null,null,null,null,null,null,null,null,null,null,null,null,null,null,null,null,null,null,null,null,null,null,null,null,null,null,null,null,null,null,null,null,null,null,null,null,null,null,null,null,null,null,null,null,null,null,null,null,null,null,null,null,null,null,null,null,null,null,null,null,null,null,null,null,null,null,null,null,null,null,null,null,null,null,null,null,null,null,null,null,null,null,null,null,null,null,null,null,null,null,null,null,null,null,null,null,null,null,null,null,null,null,null,null,null,null,null,null,null,null,null,null,null,null,null,null,null,null,null,null,null,null,null,null,null,null,null,null,null,null,null,null,null,null,null,null,null,null,null,null,null,null,null,null,null,null,null,null,0,null,null,null,null,null,null,null,null,null,null,null,null,null,null,null,null,null,null,null,null,null,null,null,null,null,null,null,null,null,null,null,null,null,null,null,null,null,null,null,null,null,null,null,null,null,null,null,null,null,null,null,null,null,null,null,null,null,null,null,null,null,null,null,null,null,null,null,null,null,null,null,null,null,null,null,null,null,null,null,null,null,null,null,null,null,null,null,null,null,null,null,null,null,null,null,null,null,null,null,null,null,null,null,null,null,null,null,null,null,null,null,null,null,null,null,null,null,null,null,null,null,null,null,null,null,null,null,null,null,null,null,null,null,null,null,null,null,null,null,null,null,null,null,null,null,null,null,null,null,null,null,0,0,0,0,0,0]
[null,null,null,null,null,null,null,null,null,null,null,null,null,null,null,null,null,null,null,null,null,null,null,null,null,null,null,null,null,null,null,null,null,null,null,null,null,null,null,null,null,null,null,null,null,null,null,null,null,null,null,null,null,null,null,null,null,null,null,null,null,null,null,null,null,null,null,null,null,null,null,null,null,null,null,null,null,null,null,null,null,null,null,null,null,null,null,null,null,null,null,null,null,null,null,null,null,null,null,null,null,null,null,null,null,null,null,null,null,null,null,null,null,null,null,null,null,null,null,null,null,null,null,null,null,null,null,null,null,null,null,null,null,null,null,null,null,null,null,null,null,null,null,null,null,null,null,null,null,null,null,null,null,null,null,null,null,null,null,null,null,null,0,null,null,null,null,null,null,null,null,null,null,null,null,null,null,null,null,null,null,null,null,null,null,null,null,null,null,null,null,null,null,null,null,null,null,null,null,null,null,null,null,null,null,null,null,null,null,null,null,null,null,null,null,null,null,null,null,null,null,null,null,null,null,null,null,null,null,null,null,null,null,null,null,null,null,null,null,null,null,null,null,null,null,null,null,null,null,null,null,null,null,null,null,null,null,null,null,null,null,null,null,null,null,null,null,null,null,null,null,null,null,null,null,null,null,null,null,null,null,null,null,null,null,null,null,null,null,null,null,null,null,null,null,null,null,null,null,null,null,null,null,null,null,null,null,null,null,null,null,null,null,null,0,0,0,0,0,0]
[null,null,null,null,null,null,null,null,null,null,null,null,null,null,null,null,null,null,null,null,null,null,null,null,null,null,null,null,null,null,null,null,null,null,null,null,null,null,null,null,null,null,null,null,null,null,null,null,null,null,null,null,null,null,null,null,null,null,null,null,null,null,null,null,null,null,null,null,null,null,null,null,null,null,null,null,null,null,null,null,null,null,null,null,null,null,null,null,null,null,null,null,null,null,null,null,null,null,null,null,null,null,null,null,null,null,null,null,null,null,null,null,null,null,null,null,null,null,null,null,null,null,null,null,null,null,null,null,null,null,null,null,null,null,null,null,null,null,null,null,null,null,null,null,null,null,null,null,null,null,null,null,null,null,null,null,null,null,null,null,null,null,0,null,null,null,null,null,null,null,null,null,null,null,null,null,null,null,null,null,null,null,null,null,null,null,null,null,null,null,null,null,null,null,null,null,null,null,null,null,null,null,null,null,null,null,null,null,null,null,null,null,null,null,null,null,null,null,null,null,null,null,null,null,null,null,null,null,null,null,null,null,null,null,null,null,null,null,null,null,null,null,null,null,null,null,null,null,null,null,null,null,null,null,null,null,null,null,null,null,null,null,null,null,null,null,null,null,null,null,null,null,null,null,null,null,null,null,null,null,null,null,null,null,null,null,null,null,null,null,null,null,null,null,null,null,null,null,null,null,null,null,null,null,null,null,null,null,null,null,null,null,null,null,0,0,0,0,0,0]
[null,null,null,null,null,null,null,null,null,null,null,null,null,null,null,null,null,null,null,null,null,null,null,null,null,null,null,null,null,null,null,null,null,null,null,null,null,null,null,null,null,null,null,null,null,null,null,null,null,null,null,null,null,null,null,null,null,null,null,null,null,null,null,null,null,null,null,null,null,null,null,null,null,null,null,null,null,null,null,null,null,null,null,null,null,null,null,null,null,null,null,null,null,null,null,null,null,null,null,null,null,null,null,null,null,null,null,null,null,null,null,null,null,null,null,null,null,null,null,null,null,null,null,null,null,null,null,null,null,null,null,null,null,null,null,null,null,null,null,null,null,null,null,null,null,null,null,null,null,null,null,null,null,null,null,null,null,null,null,null,null,null,0,null,null,null,null,null,null,null,null,null,null,null,null,null,null,null,null,null,null,null,null,null,null,null,null,null,null,null,null,null,null,null,null,null,null,null,null,null,null,null,null,null,null,null,null,null,null,null,null,null,null,null,null,null,null,null,null,null,null,null,null,null,null,null,null,null,null,null,null,null,null,null,null,null,null,null,null,null,null,null,null,null,null,null,null,null,null,null,null,null,null,null,null,null,null,null,null,null,null,null,null,null,null,null,null,null,null,null,null,null,null,null,null,null,null,null,null,null,null,null,null,null,null,null,null,null,null,null,null,null,null,null,null,null,null,null,null,null,null,null,null,null,null,null,null,null,null,null,null,null,null,null,0,0,0,0,0,0]
[null,null,null,null,null,null,null,null,null,null,null,null,null,null,null,null,null,null,null,null,null,null,null,null,null,null,null,null,null,null,null,null,null,null,null,null,null,null,null,null,null,null,null,null,null,null,null,null,null,null,null,null,null,null,null,null,null,null,null,null,null,null,null,null,null,null,null,null,null,null,null,null,null,null,null,null,null,null,null,null,null,null,null,null,null,null,null,null,null,null,null,null,null,null,null,null,null,null,null,null,null,null,null,null,null,null,null,null,null,null,null,null,null,null,null,null,null,null,null,null,null,null,null,null,null,null,null,null,null,null,null,null,null,null,null,null,null,null,null,null,null,null,null,null,null,null,null,null,null,null,null,null,null,null,null,null,null,null,null,null,null,null,0,null,null,null,null,null,null,null,null,null,null,null,null,null,null,null,null,null,null,null,null,null,null,null,null,null,null,null,null,null,null,null,null,null,null,null,null,null,null,null,null,null,null,null,null,null,null,null,null,null,null,null,null,null,null,null,null,null,null,null,null,null,null,null,null,null,null,null,null,null,null,null,null,null,null,null,null,null,null,null,null,null,null,null,null,null,null,null,null,null,null,null,null,null,null,null,null,null,null,null,null,null,null,null,null,null,null,null,null,null,null,null,null,null,null,null,null,null,null,null,null,null,null,null,null,null,null,null,null,null,null,null,null,null,null,null,null,null,null,null,null,null,null,null,null,null,null,null,null,null,null,null,0,0,0,0,0,0]
[null,null,null,null,null,null,null,null,null,null,null,null,null,null,null,null,null,null,null,null,null,null,null,null,null,null,null,null,null,null,null,null,null,null,null,null,null,null,null,null,null,null,null,null,null,null,null,null,null,null,null,null,null,null,null,null,null,null,null,null,null,null,null,null,null,null,null,null,null,null,null,null,null,null,null,null,null,null,null,null,null,null,null,null,null,null,null,null,null,null,null,null,null,null,null,null,null,null,null,null,null,null,null,null,null,null,null,null,null,null,null,null,null,null,null,null,null,null,null,null,null,null,null,null,null,null,null,null,null,null,null,null,null,null,null,null,null,null,null,null,null,null,null,null,null,null,null,null,null,null,null,null,null,null,null,null,null,null,null,null,null,null,0,null,null,null,null,null,null,null,null,null,null,null,null,null,null,null,null,null,null,null,null,null,null,null,null,null,null,null,null,null,null,null,null,null,null,null,null,null,null,null,null,null,null,null,null,null,null,null,null,null,null,null,null,null,null,null,null,null,null,null,null,null,null,null,null,null,null,null,null,null,null,null,null,null,null,null,null,null,null,null,null,null,null,null,null,null,null,null,null,null,null,null,null,null,null,null,null,null,null,null,null,null,null,null,null,null,null,null,null,null,null,null,null,null,null,null,null,null,null,null,null,null,null,null,null,null,null,null,null,null,null,null,null,null,null,null,null,null,null,null,null,null,null,null,null,null,null,null,null,null,null,null,0,0,0,0,0,0]